[Event "Titled Tuesday Blitz May 2 Early 2023"]
[White "Tarasova, Viktoriya"]
[Black "Quirke, Jeffrey"]
[WhiteFideId "4175840"]
[BlackFideId "2013029"]
[WhiteElo "2182"]
[BlackElo "2007"]
[Result "1-0"]
[Round "06"]
[TimeControl "180+2"]
[Date "2023.05.02"]
[WhiteClock "0:01:47"]
[BlackClock "0:00:28"]

1. d4 {[%clk 0:03:00]}  e6 {[%clk 0:02:50]} 2. c4 {[%clk 0:02:59]}  b6 {[%clk 0:02:50]} 3. e4 {[%clk 0:02:56]}  Bb7 {[%clk 0:02:50]} 4. Bd3 {[%clk 0:02:55]}  g6 {[%clk 0:02:46]} 5. Nc3 {[%clk 0:02:54]}  Bg7 {[%clk 0:02:46]} 6. Nge2 {[%clk 0:02:54]}  d6 {[%clk 0:02:47]} 7. O-O {[%clk 0:02:53]}  Ne7 {[%clk 0:02:47]} 8. Be3 {[%clk 0:02:53]}  Nd7 {[%clk 0:02:48]} 9. f3 {[%clk 0:02:53]}  O-O {[%clk 0:02:48]} 10. Qd2 {[%clk 0:02:54]}  f5 {[%clk 0:02:40]} 11. b4 {[%clk 0:02:49]}  e5 {[%clk 0:02:33]} 12. d5 {[%clk 0:02:48]}  f4 {[%clk 0:02:30]} 13. Bf2 {[%clk 0:02:48]}  g5 {[%clk 0:02:31]} 14. g4 {[%clk 0:02:42]}  fxg3 {[%clk 0:02:30]} 15. Bxg3 {[%clk 0:02:42]}  Ng6 {[%clk 0:02:30]} 16. Nd1 {[%clk 0:02:38]}  h5 {[%clk 0:02:21]} 17. Ne3 {[%clk 0:02:31]}  Bh6 {[%clk 0:02:08]} 18. Nf5 {[%clk 0:02:30]}  Rxf5 {[%clk 0:02:08]} 19. exf5 {[%clk 0:02:30]}  Nf4 {[%clk 0:02:07]} 20. Nxf4 {[%clk 0:02:17]}  gxf4 {[%clk 0:02:07]} 21. Bf2 {[%clk 0:02:15]}  Kh8 {[%clk 0:01:58]} 22. Kh1 {[%clk 0:02:16]}  Nf6 {[%clk 0:01:51]} 23. Rg1 {[%clk 0:02:15]}  c6 {[%clk 0:01:40]} 24. Rg6 {[%clk 0:02:13]}  Kh7 {[%clk 0:01:37]} 25. Be4 {[%clk 0:02:09]}  cxd5 {[%clk 0:01:18]} 26. cxd5 {[%clk 0:02:09]}  Rc8 {[%clk 0:01:16]} 27. Rag1 {[%clk 0:02:07]}  Rc4 {[%clk 0:01:04]} 28. Qe2 {[%clk 0:01:50]}  Bxd5 {[%clk 0:00:29]} 29. Bxd5 {[%clk 0:01:47]}  Nxd5 {[%clk 0:00:28]} 30. Qxc4 {[%clk 0:01:47]} 1-0


[Site "https://www.chess.com"]

[Event "Titled Tuesday Blitz May 2 Early 2023"]
[White "Sanhueza, Cristian"]
[Black "Vivas Zamora, Fabian Ernesto"]
[WhiteFideId "116815"]
[BlackFideId "3902480"]
[WhiteElo "2219"]
[BlackElo "2262"]
[Result "1-0"]
[Round "06"]
[TimeControl "180+2"]
[Date "2023.05.02"]
[WhiteClock "0:01:01"]
[BlackClock "0:00:01"]

1. e4 {[%clk 0:03:00]}  c5 {[%clk 0:02:58]} 2. Nf3 {[%clk 0:03:01]}  d6 {[%clk 0:02:58]} 3. d4 {[%clk 0:03:01]}  cxd4 {[%clk 0:02:59]} 4. Nxd4 {[%clk 0:03:02]}  Nf6 {[%clk 0:03:00]} 5. Nc3 {[%clk 0:03:03]}  g6 {[%clk 0:03:01]} 6. Be3 {[%clk 0:03:02]}  Bg7 {[%clk 0:03:01]} 7. f3 {[%clk 0:03:03]}  O-O {[%clk 0:03:02]} 8. Qd2 {[%clk 0:03:04]}  Nc6 {[%clk 0:03:02]} 9. O-O-O {[%clk 0:03:04]}  d5 {[%clk 0:03:01]} 10. Qe1 {[%clk 0:03:05]}  e5 {[%clk 0:02:59]} 11. Nxc6 {[%clk 0:03:05]}  bxc6 {[%clk 0:02:59]} 12. exd5 {[%clk 0:03:06]}  Nxd5 {[%clk 0:03:00]} 13. Bc4 {[%clk 0:03:06]}  Be6 {[%clk 0:02:55]} 14. Bc5 {[%clk 0:03:07]}  Re8 {[%clk 0:02:37]} 15. Ne4 {[%clk 0:03:07]}  Qc7 {[%clk 0:02:11]} 16. h4 {[%clk 0:03:01]}  h6 {[%clk 0:01:35]} 17. h5 {[%clk 0:02:50]}  g5 {[%clk 0:01:35]} 18. g4 {[%clk 0:02:45]}  Rad8 {[%clk 0:01:29]} 19. Bb3 {[%clk 0:02:42]}  a5 {[%clk 0:01:21]} 20. Qf2 {[%clk 0:02:18]}  Ra8 {[%clk 0:00:56]} 21. a4 {[%clk 0:02:17]}  Red8 {[%clk 0:00:28]} 22. Kb1 {[%clk 0:01:58]}  Rab8 {[%clk 0:00:27]} 23. Rd2 {[%clk 0:01:51]}  Rxb3 {[%clk 0:00:13]} 24. cxb3 {[%clk 0:01:52]}  Qb7 {[%clk 0:00:11]} 25. Bb6 {[%clk 0:01:43]}  Rb8 {[%clk 0:00:09]} 26. Ba7 {[%clk 0:01:39]}  Qxb3 {[%clk 0:00:05]} 27. Bxb8 {[%clk 0:01:37]}  Nb4 {[%clk 0:00:02]} 28. Nc3 {[%clk 0:01:32]}  e4 {[%clk 0:00:01]} 29. Rd8+ {[%clk 0:01:19]}  Kh7 {[%clk 0:00:01]} 30. Qd2 {[%clk 0:01:08]}  Bxc3 {[%clk 0:00:01]} 31. Qxc3 {[%clk 0:01:09]}  Qa2+ {[%clk 0:00:01]} 32. Kc1 {[%clk 0:01:10]}  Nd3+ {[%clk 0:00:02]} 33. Rxd3 {[%clk 0:01:07]}  exd3 {[%clk 0:00:02]} 34. Re1 {[%clk 0:01:05]}  Qa1+ {[%clk 0:00:02]} 35. Kd2 {[%clk 0:01:05]}  Qxa4 {[%clk 0:00:03]} 36. Bd6 {[%clk 0:01:02]}  Qb5 {[%clk 0:00:01]} 37. Bf8 {[%clk 0:01:01]} 1-0


[Site "https://www.chess.com"]

[Event "Titled Tuesday Blitz May 2 Early 2023"]
[White "Wimalasuriya, Kasun M."]
[Black "Pasti, Aron"]
[WhiteFideId "9906789"]
[BlackFideId "785857"]
[WhiteElo "1781"]
[BlackElo "2173"]
[Result "1-0"]
[Round "06"]
[TimeControl "180+2"]
[Date "2023.05.02"]
[WhiteClock "0:00:59"]
[BlackClock "0:00:01"]

1. d4 {[%clk 0:02:56]}  d5 {[%clk 0:02:59]} 2. c4 {[%clk 0:02:52]}  e6 {[%clk 0:02:57]} 3. Nf3 {[%clk 0:02:51]}  Nf6 {[%clk 0:02:57]} 4. g3 {[%clk 0:02:51]}  dxc4 {[%clk 0:02:56]} 5. Bg2 {[%clk 0:02:51]}  c6 {[%clk 0:02:55]} 6. a4 {[%clk 0:02:50]}  a6 {[%clk 0:02:55]} 7. a5 {[%clk 0:02:46]}  Bb4+ {[%clk 0:02:53]} 8. Bd2 {[%clk 0:02:45]}  Bxd2+ {[%clk 0:02:46]} 9. Nbxd2 {[%clk 0:02:45]}  O-O {[%clk 0:02:47]} 10. Nxc4 {[%clk 0:02:45]}  Nbd7 {[%clk 0:02:44]} 11. O-O {[%clk 0:02:44]}  b5 {[%clk 0:02:33]} 12. axb6 {[%clk 0:02:38]}  Nxb6 {[%clk 0:02:34]} 13. Na5 {[%clk 0:02:38]}  Bd7 {[%clk 0:02:27]} 14. Ne5 {[%clk 0:02:35]}  Nbd5 {[%clk 0:02:07]} 15. Nexc6 {[%clk 0:02:31]}  Qb6 {[%clk 0:01:46]} 16. Rc1 {[%clk 0:02:11]}  Qxb2 {[%clk 0:01:35]} 17. e4 {[%clk 0:02:07]}  Nc3 {[%clk 0:01:30]} 18. Qc2 {[%clk 0:01:55]}  Qxc2 {[%clk 0:01:20]} 19. Rxc2 {[%clk 0:01:53]}  Ncxe4 {[%clk 0:01:20]} 20. Ne7+ {[%clk 0:01:35]}  Kh8 {[%clk 0:01:20]} 21. Rc7 {[%clk 0:01:35]}  Bb5 {[%clk 0:00:57]} 22. Re1 {[%clk 0:01:32]}  Bd3 {[%clk 0:00:34]} 23. Re3 {[%clk 0:01:28]}  Bb1 {[%clk 0:00:31]} 24. Rb3 {[%clk 0:01:26]}  Rab8 {[%clk 0:00:29]} 25. Nb7 {[%clk 0:01:17]}  Ba2 {[%clk 0:00:17]} 26. Ra3 {[%clk 0:01:17]}  Bd5 {[%clk 0:00:16]} 27. Nxd5 {[%clk 0:01:17]}  exd5 {[%clk 0:00:17]} 28. Rxa6 {[%clk 0:01:16]}  Rfc8 {[%clk 0:00:14]} 29. Rxc8+ {[%clk 0:01:14]}  Rxc8 {[%clk 0:00:15]} 30. Ra1 {[%clk 0:01:13]}  h6 {[%clk 0:00:14]} 31. f3 {[%clk 0:01:13]}  Ng5 {[%clk 0:00:12]} 32. Nc5 {[%clk 0:01:12]}  Ne6 {[%clk 0:00:11]} 33. Bh3 {[%clk 0:01:11]}  Rc6 {[%clk 0:00:08]} 34. Bxe6 {[%clk 0:01:11]}  fxe6 {[%clk 0:00:09]} 35. Re1 {[%clk 0:01:10]}  Kg8 {[%clk 0:00:08]} 36. Rxe6 {[%clk 0:01:10]}  Rxe6 {[%clk 0:00:07]} 37. Nxe6 {[%clk 0:01:10]}  Kf7 {[%clk 0:00:08]} 38. Nf4 {[%clk 0:01:10]}  g5 {[%clk 0:00:06]} 39. Nd3 {[%clk 0:01:10]}  Nd7 {[%clk 0:00:06]} 40. Kf2 {[%clk 0:01:10]}  Nb6 {[%clk 0:00:06]} 41. Ne5+ {[%clk 0:01:09]}  Kf6 {[%clk 0:00:05]} 42. Ke3 {[%clk 0:01:10]}  Nc8 {[%clk 0:00:04]} 43. f4 {[%clk 0:01:07]}  gxf4+ {[%clk 0:00:03]} 44. Kxf4 {[%clk 0:01:07]}  Nd6 {[%clk 0:00:04]} 45. g4 {[%clk 0:01:07]}  Nb5 {[%clk 0:00:04]} 46. Nc6 {[%clk 0:01:02]}  Ke6 {[%clk 0:00:02]} 47. h4 {[%clk 0:01:03]}  Kd6 {[%clk 0:00:02]} 48. Nd8 {[%clk 0:00:59]}  Nxd4 {[%clk 0:00:02]} 49. Nf7+ {[%clk 0:00:59]}  Ke7 {[%clk 0:00:02]} 50. Nxh6 {[%clk 0:01:00]}  Ne6+ {[%clk 0:00:01]} 51. Ke5 {[%clk 0:01:00]}  d4 {[%clk 0:00:02]} 52. Nf5+ {[%clk 0:01:00]}  Kf7 {[%clk 0:00:01]} 53. Nxd4 {[%clk 0:01:01]}  Ng7 {[%clk 0:00:01]} 54. h5 {[%clk 0:00:59]} 1-0


[Site "https://www.chess.com"]

[Event "Titled Tuesday Blitz May 2 Early 2023"]
[White "Yonal, Timur"]
[Black "Koridze, Lile"]
[WhiteFideId "44115725"]
[BlackFideId "13612514"]
[WhiteElo "1966"]
[BlackElo "2047"]
[Result "0-1"]
[Round "06"]
[TimeControl "180+2"]
[Date "2023.05.02"]
[WhiteClock "0:00:01"]
[BlackClock "0:00:07"]

1. e4 {[%clk 0:02:59]}  c5 {[%clk 0:03:00]} 2. Nf3 {[%clk 0:02:59]}  d6 {[%clk 0:03:00]} 3. d4 {[%clk 0:02:47]}  cxd4 {[%clk 0:03:00]} 4. Nxd4 {[%clk 0:02:48]}  Nf6 {[%clk 0:02:59]} 5. Nc3 {[%clk 0:02:43]}  a6 {[%clk 0:02:57]} 6. Bg5 {[%clk 0:02:40]}  e6 {[%clk 0:02:55]} 7. f4 {[%clk 0:02:26]}  Nbd7 {[%clk 0:02:54]} 8. Qf3 {[%clk 0:02:24]}  Qc7 {[%clk 0:02:53]} 9. O-O-O {[%clk 0:02:21]}  Be7 {[%clk 0:02:51]} 10. g4 {[%clk 0:02:01]}  Rb8 {[%clk 0:02:49]} 11. Kb1 {[%clk 0:01:51]}  b5 {[%clk 0:02:49]} 12. Bd3 {[%clk 0:01:49]}  Bb7 {[%clk 0:02:47]} 13. h4 {[%clk 0:01:17]}  Nc5 {[%clk 0:02:45]} 14. Bxf6 {[%clk 0:00:54]}  Bxf6 {[%clk 0:02:45]} 15. Nce2 {[%clk 0:00:54]}  Nxd3 {[%clk 0:02:09]} 16. Rxd3 {[%clk 0:00:45]}  Qb6 {[%clk 0:02:02]} 17. g5 {[%clk 0:00:30]}  Be7 {[%clk 0:02:01]} 18. Rf1 {[%clk 0:00:20]}  g6 {[%clk 0:01:46]} 19. h5 {[%clk 0:00:19]}  Bf8 {[%clk 0:01:24]} 20. Rh1 {[%clk 0:00:15]}  Bg7 {[%clk 0:01:24]} 21. hxg6 {[%clk 0:00:14]}  hxg6 {[%clk 0:01:24]} 22. Rxh8+ {[%clk 0:00:14]}  Bxh8 {[%clk 0:01:25]} 23. Rd1 {[%clk 0:00:12]}  Qc5 {[%clk 0:01:16]} 24. Qh3 {[%clk 0:00:08]}  Kd7 {[%clk 0:01:06]} 25. f5 {[%clk 0:00:07]}  Bxd4 {[%clk 0:00:21]} 26. Nxd4 {[%clk 0:00:07]}  exf5 {[%clk 0:00:13]} 27. exf5 {[%clk 0:00:07]}  gxf5 {[%clk 0:00:08]} 28. Nxf5 {[%clk 0:00:05]}  Kc7 {[%clk 0:00:08]} 29. Qh7 {[%clk 0:00:01]}  Rf8 {[%clk 0:00:07]} 30. Qg7 {[%clk 0:00:01]}  d5 {[%clk 0:00:07]} 31. Qxf7+ {[%clk 0:00:01]}  Rxf7 {[%clk 0:00:07]} 0-1


[Site "https://www.chess.com"]

[Event "Titled Tuesday Blitz May 2 Early 2023"]
[White "Ciuffoletti, Paolo"]
[Black "Andrews, Todd"]
[WhiteFideId "807630"]
[BlackFideId "2012456"]
[WhiteElo "2143"]
[BlackElo "2217"]
[Result "0-1"]
[Round "06"]
[TimeControl "180+2"]
[Date "2023.05.02"]
[WhiteClock "0:00:05"]
[BlackClock "0:00:13"]

1. e4 {[%clk 0:03:00]}  e6 {[%clk 0:03:00]} 2. d4 {[%clk 0:03:00]}  d5 {[%clk 0:03:00]} 3. e5 {[%clk 0:03:00]}  c5 {[%clk 0:03:00]} 4. c3 {[%clk 0:03:01]}  Nc6 {[%clk 0:03:01]} 5. Nf3 {[%clk 0:03:01]}  Bd7 {[%clk 0:03:01]} 6. Be2 {[%clk 0:03:00]}  Qb6 {[%clk 0:03:02]} 7. a3 {[%clk 0:02:54]}  Rc8 {[%clk 0:02:56]} 8. b4 {[%clk 0:02:48]}  cxd4 {[%clk 0:02:56]} 9. cxd4 {[%clk 0:02:48]}  f6 {[%clk 0:02:46]} 10. O-O {[%clk 0:02:46]}  Nge7 {[%clk 0:02:42]} 11. Be3 {[%clk 0:02:21]}  Nf5 {[%clk 0:02:41]} 12. Bd3 {[%clk 0:02:14]}  Nxe3 {[%clk 0:02:34]} 13. fxe3 {[%clk 0:02:13]}  fxe5 {[%clk 0:02:33]} 14. b5 {[%clk 0:02:06]}  Nxd4 {[%clk 0:02:07]} 15. exd4 {[%clk 0:01:52]}  e4 {[%clk 0:02:08]} 16. Kh1 {[%clk 0:01:41]}  Be7 {[%clk 0:01:43]} 17. Bxe4 {[%clk 0:01:28]}  dxe4 {[%clk 0:01:42]} 18. Ne5 {[%clk 0:01:28]}  Qxb5 {[%clk 0:01:15]} 19. Nd2 {[%clk 0:01:05]}  Qd5 {[%clk 0:01:03]} 20. Qg4 {[%clk 0:00:51]}  Bf6 {[%clk 0:00:53]} 21. Rxf6 {[%clk 0:00:30]}  gxf6 {[%clk 0:00:51]} 22. Nxe4 {[%clk 0:00:29]}  Rf8 {[%clk 0:00:42]} 23. Rf1 {[%clk 0:00:14]}  Bb5 {[%clk 0:00:18]} 24. Qh5+ {[%clk 0:00:07]}  Kd8 {[%clk 0:00:16]} 25. Qh6 {[%clk 0:00:07]}  Bxf1 {[%clk 0:00:14]} 26. Qxf8+ {[%clk 0:00:07]}  Kc7 {[%clk 0:00:15]} 27. Qe7+ {[%clk 0:00:06]}  Kb8 {[%clk 0:00:14]} 28. Nd7+ {[%clk 0:00:05]}  Ka8 {[%clk 0:00:14]} 29. Nec5 {[%clk 0:00:05]}  Qxg2# {[%clk 0:00:13]} 0-1


[Site "https://www.chess.com"]

[Event "Titled Tuesday Blitz May 2 Early 2023"]
[White "Manon-og, Ramon Jr."]
[Black "Jaivardhan Raj"]
[WhiteFideId "5200776"]
[BlackFideId "25744437"]
[WhiteElo "1999"]
[BlackElo "1772"]
[Result "1-0"]
[Round "06"]
[TimeControl "180+2"]
[Date "2023.05.02"]
[WhiteClock "0:00:48"]
[BlackClock "0:00:17"]

1. e4 {[%clk 0:02:55]}  b6 {[%clk 0:03:00]} 2. d4 {[%clk 0:02:54]}  Bb7 {[%clk 0:03:01]} 3. Bd3 {[%clk 0:02:55]}  Nf6 {[%clk 0:03:00]} 4. Qe2 {[%clk 0:02:55]}  g6 {[%clk 0:03:00]} 5. f4 {[%clk 0:02:54]}  Bg7 {[%clk 0:03:00]} 6. Nf3 {[%clk 0:02:55]}  d6 {[%clk 0:02:59]} 7. O-O {[%clk 0:02:55]}  Nbd7 {[%clk 0:03:00]} 8. e5 {[%clk 0:02:55]}  dxe5 {[%clk 0:02:59]} 9. fxe5 {[%clk 0:02:56]}  Nd5 {[%clk 0:02:59]} 10. e6 {[%clk 0:02:54]}  fxe6 {[%clk 0:02:51]} 11. Qxe6 {[%clk 0:02:54]}  N5f6 {[%clk 0:02:51]} 12. Ng5 {[%clk 0:02:52]}  Bd5 {[%clk 0:02:51]} 13. Qh3 {[%clk 0:02:37]}  O-O {[%clk 0:02:48]} 14. c4 {[%clk 0:02:36]}  Bb7 {[%clk 0:02:45]} 15. Ne6 {[%clk 0:02:23]}  Qe8 {[%clk 0:02:39]} 16. Nxc7 {[%clk 0:02:22]}  Qc8 {[%clk 0:02:37]} 17. Nxa8 {[%clk 0:02:01]}  Qxa8 {[%clk 0:02:38]} 18. Nc3 {[%clk 0:02:01]}  e5 {[%clk 0:02:30]} 19. d5 {[%clk 0:01:59]}  a6 {[%clk 0:02:12]} 20. Bg5 {[%clk 0:01:49]}  b5 {[%clk 0:02:05]} 21. b3 {[%clk 0:01:45]}  bxc4 {[%clk 0:01:47]} 22. bxc4 {[%clk 0:01:46]}  Nc5 {[%clk 0:01:46]} 23. Bc2 {[%clk 0:01:46]}  Bc8 {[%clk 0:01:44]} 24. Qe3 {[%clk 0:01:43]}  Ncd7 {[%clk 0:01:41]} 25. Ne4 {[%clk 0:01:28]}  Ng4 {[%clk 0:01:16]} 26. Rxf8+ {[%clk 0:01:29]}  Bxf8 {[%clk 0:01:14]} 27. Qf3 {[%clk 0:01:23]}  Nc5 {[%clk 0:01:06]} 28. Rf1 {[%clk 0:01:16]}  Bf5 {[%clk 0:00:23]} 29. h3 {[%clk 0:01:11]}  Nxe4 {[%clk 0:00:22]} 30. Bxe4 {[%clk 0:01:11]}  Bc5+ {[%clk 0:00:23]} 31. Kh1 {[%clk 0:01:10]}  Bxe4 {[%clk 0:00:20]} 32. Qxe4 {[%clk 0:01:03]}  Nf2+ {[%clk 0:00:20]} 33. Rxf2 {[%clk 0:01:03]}  Bxf2 {[%clk 0:00:20]} 34. Qxe5 {[%clk 0:01:04]}  Qf8 {[%clk 0:00:19]} 35. d6 {[%clk 0:00:55]}  Qb8 {[%clk 0:00:17]} 36. Qe6+ {[%clk 0:00:48]} 1-0


[Site "https://www.chess.com"]

[Event "Titled Tuesday Blitz May 2 Early 2023"]
[White "Mogirzan, Matei-Valeriu"]
[Black "Hartikainen, Jarmo"]
[WhiteFideId "1257455"]
[BlackFideId "503134"]
[WhiteElo "1733"]
[BlackElo "2108"]
[Result "1-0"]
[Round "06"]
[TimeControl "180+2"]
[Date "2023.05.02"]
[WhiteClock "0:00:03"]
[BlackClock "0:00:02"]

1. e4 {[%clk 0:03:00]}  c5 {[%clk 0:02:59]} 2. Nf3 {[%clk 0:03:00]}  Nc6 {[%clk 0:02:59]} 3. Bb5 {[%clk 0:02:57]}  e6 {[%clk 0:02:58]} 4. Nc3 {[%clk 0:02:54]}  Nge7 {[%clk 0:02:58]} 5. O-O {[%clk 0:02:54]}  a6 {[%clk 0:02:58]} 6. Bxc6 {[%clk 0:02:54]}  Nxc6 {[%clk 0:02:58]} 7. d4 {[%clk 0:02:55]}  cxd4 {[%clk 0:02:58]} 8. Nxd4 {[%clk 0:02:56]}  d6 {[%clk 0:02:57]} 9. Be3 {[%clk 0:02:47]}  Be7 {[%clk 0:02:45]} 10. f4 {[%clk 0:02:37]}  O-O {[%clk 0:02:25]} 11. Kh1 {[%clk 0:02:22]}  Bd7 {[%clk 0:02:20]} 12. f5 {[%clk 0:02:10]}  b5 {[%clk 0:02:11]} 13. Qg4 {[%clk 0:01:53]}  Ne5 {[%clk 0:01:40]} 14. Qg3 {[%clk 0:01:39]}  Kh8 {[%clk 0:01:25]} 15. Nf3 {[%clk 0:01:10]}  Nc4 {[%clk 0:00:54]} 16. Bg5 {[%clk 0:00:55]}  exf5 {[%clk 0:00:48]} 17. Nd5 {[%clk 0:00:41]}  f6 {[%clk 0:00:38]} 18. Bf4 {[%clk 0:00:19]}  fxe4 {[%clk 0:00:32]} 19. Nd4 {[%clk 0:00:15]}  Ne5 {[%clk 0:00:25]} 20. Qe1 {[%clk 0:00:06]}  Rc8 {[%clk 0:00:20]} 21. Qxe4 {[%clk 0:00:06]}  Rc5 {[%clk 0:00:11]} 22. b4 {[%clk 0:00:05]}  Rc4 {[%clk 0:00:10]} 23. Ne3 {[%clk 0:00:05]}  Bc6 {[%clk 0:00:07]} 24. Nxc6 {[%clk 0:00:02]}  Rxe4 {[%clk 0:00:07]} 25. Nxd8 {[%clk 0:00:03]}  Rxd8 {[%clk 0:00:06]} 26. Nf5 {[%clk 0:00:03]}  Bf8 {[%clk 0:00:06]} 27. c3 {[%clk 0:00:03]}  Rc4 {[%clk 0:00:05]} 28. Nd4 {[%clk 0:00:03]}  Rxc3 {[%clk 0:00:04]} 29. Rad1 {[%clk 0:00:03]}  Rdc8 {[%clk 0:00:03]} 30. Ne6 {[%clk 0:00:02]}  h6 {[%clk 0:00:02]} 31. Bxe5 {[%clk 0:00:02]}  dxe5 {[%clk 0:00:01]} 32. h3 {[%clk 0:00:03]}  Rc2 {[%clk 0:00:01]} 33. Kh2 {[%clk 0:00:03]}  Kh7 {[%clk 0:00:01]} 34. Rd7 {[%clk 0:00:04]}  Bxb4 {[%clk 0:00:02]} 35. Rxf6 {[%clk 0:00:04]}  Kh8 {[%clk 0:00:02]} 36. Rxg7 {[%clk 0:00:03]} 1-0


[Site "https://www.chess.com"]

[Event "Titled Tuesday Blitz May 2 Early 2023"]
[White "Castillo Pena, Patricia Evarista"]
[Black "Zaichenko, Daria"]
[WhiteFideId "6412106"]
[BlackFideId "4197453"]
[WhiteElo "1919"]
[BlackElo "2039"]
[Result "0-1"]
[Round "06"]
[TimeControl "180+2"]
[Date "2023.05.02"]
[WhiteClock "0:00:08"]
[BlackClock "0:00:52"]

1. d4 {[%clk 0:02:59]}  d5 {[%clk 0:02:53]} 2. Nf3 {[%clk 0:02:58]}  Bf5 {[%clk 0:02:50]} 3. c4 {[%clk 0:02:55]}  e6 {[%clk 0:02:50]} 4. Qb3 {[%clk 0:02:50]}  b6 {[%clk 0:02:49]} 5. Bf4 {[%clk 0:02:49]}  Nf6 {[%clk 0:02:46]} 6. Nc3 {[%clk 0:02:48]}  c6 {[%clk 0:02:38]} 7. e3 {[%clk 0:02:47]}  Nbd7 {[%clk 0:02:38]} 8. cxd5 {[%clk 0:02:42]}  exd5 {[%clk 0:02:37]} 9. Be2 {[%clk 0:02:36]}  Be7 {[%clk 0:02:36]} 10. O-O {[%clk 0:02:36]}  O-O {[%clk 0:02:36]} 11. Rac1 {[%clk 0:02:26]}  h6 {[%clk 0:02:35]} 12. Ne5 {[%clk 0:02:18]}  Nxe5 {[%clk 0:02:34]} 13. Bxe5 {[%clk 0:02:16]}  Nd7 {[%clk 0:02:32]} 14. Bg3 {[%clk 0:02:06]}  Bh4 {[%clk 0:02:24]} 15. Bf3 {[%clk 0:01:56]}  Rc8 {[%clk 0:02:23]} 16. Rfd1 {[%clk 0:01:51]}  Bxg3 {[%clk 0:02:22]} 17. hxg3 {[%clk 0:01:50]}  Nf6 {[%clk 0:02:21]} 18. Qa4 {[%clk 0:01:42]}  Qe7 {[%clk 0:02:19]} 19. a3 {[%clk 0:01:37]}  Ne4 {[%clk 0:02:13]} 20. Bxe4 {[%clk 0:01:20]}  Bxe4 {[%clk 0:02:07]} 21. Nxe4 {[%clk 0:01:19]}  dxe4 {[%clk 0:02:05]} 22. Rxc6 {[%clk 0:01:05]}  Qd7 {[%clk 0:02:04]} 23. Rdc1 {[%clk 0:01:05]}  a6 {[%clk 0:02:04]} 24. Qc2 {[%clk 0:01:01]}  Rce8 {[%clk 0:02:01]} 25. Rxb6 {[%clk 0:00:57]}  Qg4 {[%clk 0:02:01]} 26. Rxa6 {[%clk 0:00:46]}  Rc8 {[%clk 0:02:00]} 27. Rc6 {[%clk 0:00:46]}  Rb8 {[%clk 0:01:56]} 28. b4 {[%clk 0:00:46]}  h5 {[%clk 0:01:52]} 29. Qc5 {[%clk 0:00:34]}  h4 {[%clk 0:01:48]} 30. gxh4 {[%clk 0:00:34]}  Qxh4 {[%clk 0:01:48]} 31. Qe5 {[%clk 0:00:29]}  Ra8 {[%clk 0:01:33]} 32. R6c3 {[%clk 0:00:19]}  Ra6 {[%clk 0:01:26]} 33. b5 {[%clk 0:00:17]}  Rh6 {[%clk 0:01:25]} 34. Kf1 {[%clk 0:00:13]}  Qh1+ {[%clk 0:01:23]} 35. Ke2 {[%clk 0:00:14]}  Qxg2 {[%clk 0:01:23]} 36. Qf4 {[%clk 0:00:12]}  Rf6 {[%clk 0:01:21]} 37. Qg3 {[%clk 0:00:11]}  Qxg3 {[%clk 0:01:03]} 38. fxg3 {[%clk 0:00:12]}  Rf3 {[%clk 0:00:56]} 39. b6 {[%clk 0:00:11]}  Kh7 {[%clk 0:00:54]} 40. b7 {[%clk 0:00:12]}  Rb8 {[%clk 0:00:54]} 41. Rc7 {[%clk 0:00:12]}  Rxg3 {[%clk 0:00:54]} 42. Rh1+ {[%clk 0:00:12]}  Kg6 {[%clk 0:00:54]} 43. Rb1 {[%clk 0:00:10]}  Rg2+ {[%clk 0:00:54]} 44. Kd1 {[%clk 0:00:09]}  Rh8 {[%clk 0:00:53]} 45. b8=Q {[%clk 0:00:08]}  Rh1# {[%clk 0:00:52]} 0-1


[Site "https://www.chess.com"]

[Event "Titled Tuesday Blitz May 2 Early 2023"]
[White "Sanchez, Robert"]
[Black "Adithya A Chullikkad"]
[WhiteFideId "2034360"]
[BlackFideId "45078734"]
[WhiteElo "1966"]
[BlackElo "1984"]
[Result "0-1"]
[Round "06"]
[TimeControl "180+2"]
[Date "2023.05.02"]
[WhiteClock "0:00:45"]
[BlackClock "0:00:11"]

1. Nf3 {[%clk 0:03:00]}  Nf6 {[%clk 0:02:59]} 2. c4 {[%clk 0:03:01]}  d5 {[%clk 0:02:59]} 3. b3 {[%clk 0:03:00]}  dxc4 {[%clk 0:02:59]} 4. bxc4 {[%clk 0:03:00]}  c5 {[%clk 0:02:59]} 5. Bb2 {[%clk 0:03:00]}  Nc6 {[%clk 0:03:00]} 6. e3 {[%clk 0:03:00]}  b6 {[%clk 0:03:00]} 7. Be2 {[%clk 0:03:00]}  Bb7 {[%clk 0:03:00]} 8. O-O {[%clk 0:03:01]}  e6 {[%clk 0:03:00]} 9. d4 {[%clk 0:03:01]}  Be7 {[%clk 0:03:00]} 10. Nc3 {[%clk 0:03:01]}  O-O {[%clk 0:03:00]} 11. Qd2 {[%clk 0:03:01]}  Qd7 {[%clk 0:02:59]} 12. Rfd1 {[%clk 0:03:01]}  Rfd8 {[%clk 0:03:00]} 13. Qc1 {[%clk 0:03:00]}  Qe8 {[%clk 0:03:00]} 14. a3 {[%clk 0:02:48]}  Rac8 {[%clk 0:02:59]} 15. Qc2 {[%clk 0:02:39]}  cxd4 {[%clk 0:02:58]} 16. exd4 {[%clk 0:02:39]}  Na5 {[%clk 0:02:57]} 17. Ne5 {[%clk 0:02:31]}  Ba6 {[%clk 0:02:55]} 18. Na4 {[%clk 0:02:22]}  Nd7 {[%clk 0:02:48]} 19. Nxd7 {[%clk 0:02:20]}  Qxd7 {[%clk 0:02:39]} 20. Bd3 {[%clk 0:02:01]}  h6 {[%clk 0:02:26]} 21. c5 {[%clk 0:01:59]}  Bxd3 {[%clk 0:02:18]} 22. Rxd3 {[%clk 0:01:58]}  bxc5 {[%clk 0:02:17]} 23. Qd2 {[%clk 0:01:54]}  c4 {[%clk 0:02:13]} 24. Rg3 {[%clk 0:01:50]}  Bd6 {[%clk 0:00:54]} 25. Qxa5 {[%clk 0:01:43]}  Bxg3 {[%clk 0:00:53]} 26. hxg3 {[%clk 0:01:43]}  Rb8 {[%clk 0:00:31]} 27. Nc5 {[%clk 0:01:14]}  Qd5 {[%clk 0:00:18]} 28. Bc3 {[%clk 0:00:53]}  Rdc8 {[%clk 0:00:11]} 29. Qxa7 {[%clk 0:00:52]}  e5 {[%clk 0:00:11]} 30. Rd1 {[%clk 0:00:45]}  exd4 {[%clk 0:00:11]} 31. Rxd4 {[%clk 0:00:45]}  Qxc5 {[%clk 0:00:11]} 32. Rd8+ {[%clk 0:00:45]} 0-1


[Site "https://www.chess.com"]